Cogmind - Beta 10.2 @@@ ROGUE MODE // 2021.02.14 @ 22:51:53 Player: KTG-V1 Result: Destroyed by D-53 Grenadier with Mini Grenade Launcher Performance ------------- Evolutions (0) 0 Regions Visited (2) 400 Robots Destroyed (30) 150 Value Destroyed (624) 624 Prototype IDs (0) 0 Alien Tech Used (0) 0 Bonus (0) 0 TOTAL SCORE: 1174 Bonus ------- None Cogmind --------- Core Integrity 0/250 Matter 255/300 Energy 257/265 System Corruption 1% Temperature Cool (0) Movement Treading (180) Ox1 Location -10/Mines Parts ------- > --- POWER (1) -------- Improved Ion Engine > --- PROPULSION (2) --- Light Treads Light Treads > --- UTILITY (2) ------ Large Storage Unit Large Storage Unit > --- WEAPON (2) ------- Heavy Assault Rifle Autogun > --- INVENTORY (16) --- Ion Engine Light Nuclear Core Light Treads Aluminum Leg Medium Storage Unit Medium Storage Unit High-capacity Matter Pod (200) Improved Signal Interpreter Light Armor Plating Light Armor Plating Hacking Suite Thief Drone Bay Heavy Assault Rifle Heavy Assault Rifle Heavy Assault Rifle Peak State ------------ > --- POWER ------------ Improved Ion Engine > --- PROPULSION ------- Light Treads Light Treads > --- UTILITY ---------- Large Storage Unit Large Storage Unit > --- WEAPON ----------- Autogun Autogun > --- INVENTORY -------- Ion Engine Light Nuclear Core Light Treads Aluminum Leg Medium Storage Unit Medium Storage Unit High-capacity Matter Pod Improved Signal Interpreter Light Armor Plating Light Armor Plating Hacking Suite Thief Drone Bay Heavy Assault Rifle Heavy Assault Rifle Heavy Assault Rifle Heavy Assault Rifle [Rating: 13] Favorites ----------- Power Ion Engine Engine Ion Engine Propulsion Light Treads Treads Light Treads Utility Large Storage Unit Storage Large Storage Unit Protection Light Armor Plating Weapon Autogun Energy Gun EM Pulse Gun Ballistic Gun Autogun Special Melee Weapon Datajack Build | -11 -10 -10 ------- Run | Scr Mat Min Slots Evolved . | . . . Power . | . . . Propulsion . | . . . Utility . | . . . Weapon . | . . . Parts Attached 28 | 8 16 4 Power 3 | 1 1 1 Engine 3 | 1 1 1 Core . | . . . Reactor . | . . . Propulsion 5 | 2 2 1 Treads 5 | 2 2 1 Leg . | . . . Wheel . | . . . Hover . | . . . Flight . | . . . Utility 7 | 1 6 . Device . | . . . Storage 6 | 1 5 . Processor . | . . . Hackware . | . . . Protection 1 | . 1 . Artifact . | . . . Weapon 13 | 4 7 2 Energy Gun 5 | 3 2 . Energy Cannon . | . . . Ballistic Gun 7 | 1 4 2 Ballistic Cannon . | . . . Launcher . | . . . Special Weapon . | . . . Impact Weapon . | . . . Slashing Weapon . | . . . Piercing Weapon . | . . . Special Melee Weapon 1 | . 1 . Unidentified Prototypes . | . . . Parts Lost 3 | . 2 1 Power 1 | . 1 . Propulsion . | . . . Utility . | . . . Weapon 2 | . 1 1 Highest Loss Streak 2 | . 2 1 Average Slot Usage (%) 98 | . 97 100 Engine 13 | . 13 14 Treads 27 | . 27 28 Storage 24 | . 22 28 Protection 2 | . 3 . Energy Gun 5 | . 8 . Ballistic Gun 22 | . 18 28 Naked Turns . | . . . Heaviest Build 45 | 12 43 45 Greatest Support 40 | 40 40 40 Greatest Overweight (x) 1 | . 1 1 Average Overweight (x) . | . . 1 Largest Inventory Capacity 16 | 6 16 16 Average Capacity 12 | 5 11 16 Most Carried 16 | 6 16 16 Average Carried 11 | 4 10 15 Final Capacity 16 | 6 16 16 Final Carried 15 | 6 15 15 Class Distribution -------------------- 100% | Mutant Dominant Class ---------------- Mutant | -10/Materials Mutant | -10/Mines Resources | -11 -10 -10 ----------- Run | Scr Mat Min Matter Collected 951 | 286 494 171 Remotely . | . . . Salvage Created 1033 | 69 718 246 Parts 71 | 3 46 22 Haulers Intercepted 2 | . 2 . Recyclers Shooed . | . . . Parts Field Recycled . | . . . Retrieved Matter . | . . . Parts Self-Destructed . | . . . Prevented . | . . . Kills | -11 -10 -10 ------- Run | Scr Mat Min Combat Hostiles Destroyed 17 | . 11 6 Guns 16 | . 10 6 Classes Destroyed 10 | 2 7 1 Worker 2 | . 1 1 Builder 2 | . 1 1 Tunneler 1 | 1 . . Hauler 2 | . 2 . Recycler 2 | 1 1 . Operator 1 | . 1 . Watcher 3 | . 3 . Swarmer 6 | . 3 3 Grunt 9 | . 8 1 Sentry 2 | . . 2 Best Kill Streak 3 | 2 3 3 Combat Bots Only 3 | . 3 3 Max Kills in Single Turn 2 | 1 2 1 Gunslinging 1 | . 1 . Exploded . | . . . Melee . | . . . Uniques/NPCs Destroyed . | . . . Combat | -11 -10 -10 -------- Run | Scr Mat Min Damage Taken 1391 | . 565 826 Core 257 | . 63 194 Absorbed by Shields . | . . . Core Remaining (%) 100 | 100 . . Volleys Fired 101 | 6 74 21 Largest 2 | 2 2 2 Hottest 70 | 60 70 46 Shots Fired 159 | 12 105 42 Gun 159 | 12 105 42 Cannon . | . . . Launcher . | . . . Special . | . . . Kinetic 97 | 6 49 42 Thermal 19 | 6 13 . Explosive . | . . . Electromagnetic 43 | . 43 . Robot Hit Streak 12 | 6 12 6 Robot Miss Streak 4 | 1 4 2 Penetration Max . | . . . Secondary Targets 3 | . 2 1 Max Gunslinging Chain 1 | . 1 1 Shots Hit Robots 106 | 8 72 26 Core Hits 42 | 3 27 12 Critical Hits . | . . . Critical Kills . | . . . Critical Parts Destroyed . | . . . Melee Attacks 3 | . 3 . Impact . | . . . Slashing . | . . . Piercing . | . . . Sneak Attacks 3 | . 3 . Combat Hostiles . | . . . Follow-up Attacks . | . . . Damage Inflicted 1559 | 102 1099 358 Guns 1440 | 102 980 358 Cannons . | . . . Explosions 119 | . 119 . Melee . | . . . Ramming . | . . . Kinetic 795 | 35 402 358 Thermal 323 | 67 256 . Explosive . | . . . Electromagnetic 441 | . 441 . Impact . | . . . Slashing . | . . . Piercing . | . . . Highest Corruption 1 | . 1 1 Average Corruption 1 | . 1 1 Corruption Purged . | . . . Effects 2 | . . 2 Message Errors 1 | . . 1 Data Loss (minor) 1 | . . 1 Overload Shots . | . . . Overflow Damage 1 | . 1 . Projectiles . | . . . Explosions 1 | . 1 . Melee . | . . . Knockbacks . | . . . Impact . | . . . Kinetic . | . . . Secondary . | . . . Self-Inflicted Damage 10 | . 10 . Shots 1 | . 1 . Rammed . | . . . Targets Rammed . | . . . Kicked . | . . . Crushed . | . . . Highest Temperature 246 | 20 246 44 Average Temperature 47 | 14 60 12 Received Heat Transfer 330 | . 249 81 Siege Activations . | . . . Robots Corrupted 1 | . 1 . Combat Hostiles 1 | . 1 . Parts Fried . | . . . Impact Corruptions . | . . . Robots Melted . | . . . Combat Hostiles . | . . . Parts Melted 1 | . 1 . Heat Transferred 657 | 150 507 . Parts Sabotaged . | . . . Parts Stolen . | . . . Parts Stripped . | . . . Power Chain Reactions 3 | . 3 . Missiles Intercepted . | . . . Alert | -11 -10 -10 ------- Run | Scr Mat Min Peak Influence 215 | 10 215 213 Initial 25 | . 6 25 Average 89 | 2 99 86 Maximum Alert Level 1 | . 1 1 Low Security (%) 89 | 100 90 88 Level 1 10 | . 10 11 Level 2 . | . . . Level 3 . | . . . Level 4 . | . . . Level 5 . | . . . High Security . | . . . Max Security . | . . . Squads Dispatched 3 | . 3 . Investigation 2 | . 2 . Extermination . | . . . Reinforcement 1 | . 1 . Assault . | . . . Garrison . | . . . Intercept . | . . . Construction Impeded . | . . . Haulers Reinforced . | . . . Stealth | -11 -10 -10 --------- Run | Scr Mat Min Distress Signals 2 | . 2 . Communications Jammed . | . . . Distress Signals . | . . . Times Spotted 23 | . 16 7 Peak Tracking Total 3 | . 3 2 Tactical Retreats 1 | . 1 . Traps | -11 -10 -10 ------- Run | Scr Mat Min Traps Triggered 1 | . 1 . Indirectly . | . . . Trap Hack Attempts . | . . . Triggered . | . . . Disarmed . | . . . Reprogrammed . | . . . Reused . | . . . Traps Extracted . | . . . Installed . | . . . Triggered . | . . . Machines | -11 -10 -10 ---------- Run | Scr Mat Min Machines Disabled 3 | . 2 1 Max in Single Turn 1 | . 1 1 Machines Sabotaged . | . . . Garrisons Compromised . | . . . Overloaded Fab Kills . | . . . Fab Network Shutdowns . | . . . Hacking | -11 -10 -10 --------- Run | Scr Mat Min Machines Accessed 11 | . 9 2 Terminals 7 | . 6 1 Fabricators . | . . . Repair Stations 1 | . 1 . Recycling Units 2 | . 2 . Scanalyzers . | . . . Garrison Access . | . . . Total Hacks 34 | . 31 3 Successful 21 | . 18 3 Failed 13 | . 13 . Catastrophic 1 | . 1 . Database Lockouts . | . . . Manual 14 | . 13 1 Terminals 24 | . 22 2 Fabricators . | . . . Repair Stations 5 | . 5 . Recycling Units 4 | . 4 . Scanalyzers . | . . . Garrison Access . | . . . Terminal Hacks 11 | . 9 2 Part Schematic 2 | . 2 . Open Door 1 | . . 1 Branch Access Points 1 | . 1 . Locate Traps 5 | . 5 . Hauler Manifests 1 | . 1 . Zone Layout 1 | . . 1 Fabricator Hacks . | . . . Repair Station Hacks 3 | . 3 . Scan Component 2 | . 2 . Repair 1 | . 1 . Recycling Unit Hacks 2 | . 2 . Report Inventory 2 | . 2 . Scanalyzer . | . . . Garrison Access Hacks . | . . . Unauthorized Hacks 5 | . 4 1 Terminals 3 | . 2 1 Track 2 | . 1 1 Botnet 1 | . 1 . Fabricators . | . . . Repair Stations . | . . . Recycling Units 2 | . 2 . Tunnel 2 | . 2 . Scanalyzers . | . . . Garrison Access . | . . . Data Cores Recovered . | . . . Used . | . . . Hacking Detections 7 | . 7 . Full Trace Events 1 | . 1 . Feedback Events . | . . . Feedback Blocked . | . . . Robot Schematics Acquired . | . . . Robots Built . | . . . Matter . | . . . Time . | . . . Total Robot Build Rating . | . . . Part Schematics Acquired 2 | . 2 . Parts Built . | . . . Matter . | . . . Time . | . . . Total Part Build Rating . | . . . Parts Repaired 1 | . 1 . Time 26 | . 26 . Parts Recycled . | . . . Recycled Matter . | . . . Retrieved Matter . | . . . Retrieved Components . | . . . Parts Scanalyzed . | . . . Part Schematics Acquired . | . . . Parts Damaged . | . . . Bothacking | -11 -10 -10 ------------ Run | Scr Mat Min Used RIF Installer . | . . . Robots Hacked . | . . . Non-combat . | . . . Combat . | . . . Robot Hacks Applied . | . . . Relay Couplers Released . | . . . Robots Rewired . | . . . Allies Hacked . | . . . Hacks Repelled . | . . . Allies | -11 -10 -10 -------- Run | Scr Mat Min Total Allies 1 | . . 1 Largest Group 1 | . . 1 Highest-Rated Group 31 | . . 31 Highest-Rated Ally 31 | . . 31 Total Orders . | . . . Ally Attacks . | . . . Total Damage . | . . . Kills . | . . . Allies Corrupted . | . . . Allies Melted . | . . . Intel | -11 -10 -10 ------- Run | Scr Mat Min Robot Analysis Total . | . . . Derelict Logs Recovered 1 | . . 1 Drone Launches . | . . . Drone Recoveries . | . . . Exploration | -11 -10 -10 ------------- Run | Scr Mat Min Turns Passed 2513 | 143 1480 890 Spaces Moved 1212 | 69 697 446 Core 1 | 1 . . Treads 1211 | 68 697 446 Legs . | . . . Wheels . | . . . Hover . | . . . Flight . | . . . Fastest Speed 50 | 50 160 180 Average Speed 171 | 158 167 180 Slowest Speed 180 | 160 180 180 Overloaded Moves . | . . . Propulsion Burnouts . | . . . Robots Hopped . | . . . Cave-ins Triggered . | . . . Exploration Rate (%) 59 | 5 96 77 Regions Visited 2 Branch Regions 1 Pre-discovered Areas 3 | . 2 1 Known Exits Taken 1 | . 1 . Unknown Exits Taken 1 | 1 . . Scrap Searched 1 | . . 1 Spaces Dug . | . . . Terrain Destroyed 10 | . 10 . Melee . | . . . Projectile . | . . . AOE 10 | . 10 . Terrain Rammed . | . . . Walls Destroyed . | . . . Machines Disabled . | . . . Actions | -11 -10 -10 --------- Run | Scr Mat Min Total 1503 | 88 914 501 Wait 102 | . 79 23 Move 1210 | 68 696 446 Hop . | . . . Pick Up 34 | 6 25 3 Fast Attach 11 | 6 5 . Attach 7 | . 5 2 Detach 1 | . 1 . Swap 10 | 2 6 2 Drop 24 | . 20 4 Fire 101 | 6 74 21 Melee 3 | . 3 . Ram . | . . . Kick . | . . . Crush . | . . . Escape Stasis . | . . . Rewire . | . . . Trap . | . . . Miscellaneous . | . . . Route ------- -11/Scrapyard -10/Materials (discovered 5 exits: [*Mat x3] / *Min x2) -10/Mines (discovered 2 exits: [*Mat] / [*Exi]) History --------- Turn | Location | Event 7 | -11/Scrapyard | Discovered new exit (range 16) 144 | -11/Scrapyard | Entered Materials 160 | -10/Materials | Discovered new exit (range 13) 308 | -10/Materials | Build established: Mutant 337 | -10/Materials | Discovered new exit (range 10) 451 | -10/Materials | Identified exit to Mines 880 | -10/Materials | Repaired Lgt. Treads 893 | -10/Materials | Discovered new exit (range 16) 1090 | -10/Materials | Discovered new exit (range 13) 1510 | -10/Materials | Discovered new exit (range 11) 1624 | -10/Materials | Entered Mines 1627 | -10/Mines | Met a Derelict bent on vengeance 1899 | -10/Mines | Discovered new exit (range 12) 2223 | -10/Mines | Escorted by a lone wolf Derelict 2280 | -10/Mines | Deemed a non-threat by the Exiles lab entrance 2282 | -10/Mines | Discovered new exit (range 5) 2354 | -10/Mines | Learned Materials terminal intel 2400 | -10/Mines | Found the Drone Emporium 2408 | -10/Mines | Found Prototype Device 2445 | -10/Mines | Assembled infested the area 2507 | -10/Mines | Core integrity fell below 50% 2514 | -10/Mines | Core integrity fell below 20% 2514 | -10/Mines | Destroyed by D-53 Grenadier with Mini Grenade Launcher Last Messages --------------- opened my Drone Emporium yet but am totally ready to tell them where they can shove that C&D." 02402_ M4-QZL(g): "I'm a fan of the free market. Free drones for all! No strings attached!" 02408_ Dropped Hvy. Assault Rifle. 02408_ Acquired Prototype Device. 02445_ ALERT: Infestation in the mines, dispatching Demolisher response squad. 02489_ System corrupted: Component data lost. 02504_ K-01 Serf collects debris. 02504_ U-05 Engineer lays Concrete. 02504_ 1E-FZE(g): "Mission, incomplete...*fzzt*" 02504_ 1E-FZE(g) destroyed. 02504_ U-05 Engineer destroyed. 02505_ The unstable cave ceiling collapses. 02507_ K-01 Serf collects debris. 02510_ The unstable cave ceiling collapses. 02510_ K-01 Serf collects debris. 02511_ Autogun destroyed. 02513_ K-01 Serf collects debris. Map ----- +----------------------------------------------------+ | ?????????????????????????????????????????????????? | | ?????????????????????????????????????????????????? | | ##???????????????????????????????????????????????? | | ##??????????????????????????????????????????????? | | #??????????????????????????????????????????????? | | ##?????????????????????????????????????????????? | | ##????????????????????????????????????????????? | | ###?????????????????????????????##???????????? | | ##???????????????????????????#!##??????????? | | ##?????????????????????????? ##?????????? | | ##???????????????????????## ##????????? | | # ! ##??????????????????????# !#????????? | | ## #??????####???????????## ######???? | | ## #?????## ##?????????## ????? | | ! ##?##### #?????????# ??????? | | # ! #?##""## ########### #???????????? | | # #?#" # [#???????????? | | #% #?#" [ ############ ##???????????? | | = ##?#" #?????????#####????????????? | | ####??#" #X # ##?????????????????????????? | | ######?????##""## # ######????????????????????? | | #???????????####### ##???????????????????? | | #?????????????????# ##??????????????????? | | #?????????????????### ##?????????????????? | | ????????????????????# ## #??????????????? | | ????????????????????# @ #????????? | | ????????????????????# = k #??????????? | | ????????????????????# d% #???????????? | | ########????????????## d #??????????? | | #?????????????## ##??????????? | | ##### #??????????????### ## #???????????? | | ????# #????????????????# ####### # ##???????????? | | ????# #????????????????#=*%=! #??#?###??????????? | | ????# #????????????????##### #????? ???????????? | | ????# #????????????????????# #???? ????????????? | | ???## #????????????????????# #???$#????????????? | | ???# ##???????????????????# #?? #????????????? | | ???# ####????????????????# ### #????????????? | | ???## ##??????????????## #????????????? | | ????### ##????????????## #????????????? | | ??????### #???????????## #####????????????? | | ????????# ##??????????# #????????????????? | | ???????## ####???????# ##????????????????? | | ??????## #???????## ##?????????????????? | | ?????## #????????## ##??????????????????? | | ?????# #?????????# #???????????????????? | | #????# ##???####??# #?????#####?????????? | | #????# ##??## ##?# #?##### ##????????? | | #????## #### ### ### #????????? | | #?????## ## #????????? | +----------------------------------------------------+ Best States ------------- Heat Dissipation 25 Energy Generation 12 Energy Capacity 265 Matter Stores 300 Matter Capacity 500 Sight Range 16 Terrain Scan Density 10 Armor Coverage 150 Evasion (%) 40 Recoil Reduction 2 Item Schematics ----------------- Lrg. Storage Unit | -10/Materials | Hacked Med. Storage Unit | -10/Materials | Hacked Robot Schematics ------------------ None Fabricated ------------ Nothing Alien Tech Used ----------------- None Achievements -------------- None Challenges ------------ None Game ------ Seed TransportMakeshiftTreads Manual? 0 Play Time 00:21:59 Cumulative 66.3 hours Start 2021.02.13 @ 21:06:10 End 2021.02.14 @ 22:51:53 Sessions 4 Manual Loads 0 Difficulty Rogue Special Mode None Game No. 21 Rogue 20 Adventurer 0 Explorer 1 Win Type - Total 3 Types 2/0/0/1/0/0/0/0/0 Lore% 45 Gallery% 53 Achievement% 41 Wizard Run 0 Options --------- ASCII 0 Keyboard 0 Movement Mouse Keybinds 0 Fullscreen 1 Font 18/Terminus Map View 76x50 Tactical HUD 1 Map Filters NONE Filters NONE Steam 0 RUN: e549a015-7d0b-43e5-b62f-e69620457f2d